[Event "Romanian-ch Youth Open U8 2024"]
[Site "Eforie Nord"]
[Date "2024.04.16"]
[Round "6.4"]
[White "Butochnov, Victor"]
[Black "Dragoi, Aaron-Mathias"]
[Result "0-1"]
[ECO "B11"]
[WhiteElo "1634"]
[BlackElo "1533"]
[Annotator "NA RC"]
[PlyCount "34"]
[EventDate "2024.04.10"]
[EventType "swiss"]
[EventCountry "ROU"]
[SourceTitle "playchess.com"]
[Source "ChessBase"]
[SourceQuality "1"]
[TimeControl "5400+30"]

1. e4 {[%emt 0:00:03]} c6 {[%emt 0:10:02]} 2. Nf3 {[%emt 0:00:20]} d5 {[%emt 0:00:01]} 3. Nc3 {[%emt 0:00:18]} Bg4 {[%emt 0:00:02]} 4. Be2 {[%emt 0:00:15]} e6 {[%emt 0:00:07]} 5. O-O {[%emt 0:00:42]} Nf6 {[%emt 0:00:11]} 6. d3 {[%emt 0:00:08]} Be7 {[%emt 0:00:25]} 7. Bf4 {[%emt 0:00:17]} O-O {[%emt 0:00:25]} 8. Qd2 {[%emt 0:01:02]} dxe4 {[%emt 0:02:03]} 9. dxe4 {[%emt 0:00:12]} Qxd2 {[%emt 0:00:13]} 10. Nxd2 {[%emt 0:00:09]} Bxe2 {[%emt 0:00:04]} 11. Nxe2 {[%emt 0:00:15]} c5 {[%emt 0:01:26]} 12. f3 {[%emt 0:00:19]} Nc6 {[%emt 0:00:46]} 13. Nc4 {[%emt 0:00:17]} Rfd8 {[%emt 0:02:17]} 14. Rfd1 {[%emt 0:00:19]} b5 {[%emt 0:02:47]} 15. Nd6 {[%emt 0:00:35]} e5 {[%emt 0:01:56]} 16. Nxb5 {[%emt 0:02:39]} exf4 {[%emt 0:00:38]} 17. Nbc3 {[%emt 0:00:35]} Nd4 {[%emt 0:02:14]} 0-1

[Event "Romanian-ch Youth Open U8 2024"]
[Site "Eforie Nord"]
[Date "2024.04.17"]
[Round "7.1"]
[White "Vasiloi, Leonard"]
[Black "Dragoi, Aaron-Mathias"]
[Result "1-0"]
[ECO "C10"]
[WhiteElo "1547"]
[BlackElo "1533"]
[Annotator "NA RC COMBH"]
[PlyCount "89"]
[EventDate "2024.04.10"]
[EventType "swiss"]
[EventCountry "ROU"]
[SourceTitle "playchess.com"]
[Source "ChessBase"]
[SourceQuality "1"]
[TimeControl "5400+30"]

1. e4 {[%emt 0:00:01]} e6 {[%emt 0:10:01]} 2. d4 {[%emt 0:00:44]} d5 {[%emt 0:00:13]} 3. Nd2 {[%emt 0:00:12]} dxe4 {[%emt 0:00:39]} 4. Nxe4 {[%emt 0:00:19]} Nd7 {[%emt 0:00:27]} 5. Bd3 {[%emt 0:00:06]} Ngf6 {[%emt 0:00:09]} 6. Nf3 {[%emt 0:00:27]} Nxe4 {[%emt 0:01:05]} 7. Bxe4 {[%emt 0:00:07]} c5 {[%emt 0:02:46]} 8. c3 {[%emt 0:00:32]} Nf6 {[%emt 0:03:47]} 9. Bg5 {[%emt 0:00:24]} cxd4 {[%emt 0:12:16]} 10. Bxf6 {[%emt 0:01:59]} Qxf6 {[%emt 0:05:12]} 11. Qxd4 {[%emt 0:00:53]} Qxd4 {[%emt 0:00:13]} 12. Nxd4 {[%emt 0:00:56]} a6 {[%emt 0:04:42]} 13. O-O-O {[%emt 0:01:11]} Bc5 {[%emt 0:04:51]} 14. Nc6 {[%emt 0:00:55]} Bd7 {[%emt 0:02:52]} 15. Ne5 {[%emt 0:00:40]} Bc8 {[%emt 0:12:34]} 16. Rd3 {[%emt 0:23:17]} f6 {[%emt 0:04:43]} 17. Rhd1 {[%emt 0:00:23]} O-O {[%emt 0:06:42]} 18. Nd7 {[%emt 0:02:02]} Bxd7 {[%emt 0:02:25]} 19. Rxd7 {[%emt 0:00:27]} Bxf2 {[%emt 0:05:54]} 20. Bxb7 {[%emt 0:04:19]} Ra7 {[%emt 0:05:41]} 21. Bc6 {[%emt 0:10:02]} Rxd7 {[%emt 0:02:05]} 22. Rxd7 {[%emt 0:01:00]} Rb8 {[%emt 0:01:51]} 23. Kc2 {[%emt 0:05:12]} Rb6 {[%emt 0:02:09]} 24. Bf3 {[%emt 0:00:38]} h6 {[%emt 0:02:01]} 25. b3 {[%emt 0:04:30]} Kh7 {[%emt 0:02:04]} 26. Kd3 {[%emt 0:01:09]} Kg6 {[%emt 0:01:34]} 27. Ke2 {[%emt 0:02:38]} Bc5 {[%emt 0:00:16]} 28. b4 {[%emt 0:02:41]} Bd6 {[%emt 0:00:02]} 29. a4 {[%emt 0:00:27]} Bxh2 {[%emt 0:01:04]} 30. a5 {[%emt 0:01:58]} Rb8 {[%emt 0:00:01]} 31. Bb7 {[%emt 0:00:29]} Be5 {[%emt 0:00:22]} 32. Kd2 {[%emt 0:01:49]} f5 {[%emt 0:00:07]} 33. Bxa6 {[%emt 0:00:15]} Kf6 {[%emt 0:00:03]} 34. Bb7 {[%emt 0:01:54]} Bh2 {[%emt 0:00:35]} 35. c4 {[%emt 0:00:28]} e5 {[%emt 0:00:31]} 36. a6 {[%emt 0:00:13]} Bg1 {[%emt 0:00:05]} 37. c5 {[%emt 0:00:07]} Ke6 {[%emt 0:00:24]} 38. Rd6+ {[%emt 0:00:28]} Ke7 {[%emt 0:00:19]} 39. a7 {[%emt 0:00:31]} Rf8 {[%emt 0:00:26]} 40. a8=Q {[%emt 0:00:14]} Rxa8 {[%emt 0:00:06]} 41. Bxa8 {[%emt 0:00:06]} e4 {[%emt 0:00:15]} 42. Ke2 {[%emt 0:02:09]} Bh2 {[%emt 0:00:42]} 43. Rd1 {[%emt 0:00:20]} Bc7 {[%emt 0:00:46]} 44. b5 {[%emt 0:00:15]} g5 {[%emt 0:01:12]} 45. b6 {[%emt 0:00:33]} 1-0

[Event "Romanian-ch Youth Open U8 2024"]
[Site "Eforie Nord"]
[Date "2024.04.17"]
[Round "7.2"]
[White "Badescu, Matei-Andrei"]
[Black "Rosu, Razvan-Mihai"]
[Result "1-0"]
[ECO "B10"]
[WhiteElo "1635"]
[BlackElo "1517"]
[Annotator "NA RC COMBH"]
[PlyCount "79"]
[EventDate "2024.04.10"]
[EventType "swiss"]
[EventCountry "ROU"]
[SourceTitle "playchess.com"]
[Source "ChessBase"]
[SourceQuality "1"]
[TimeControl "5400+30"]

1. e4 {[%emt 0:02:04]} c6 {[%emt 0:10:06]} 2. d3 {[%emt 0:00:39]} d5 {[%emt 1:21:24]} 3. Nd2 {[%emt 1:29:17]} dxe4 {[%emt 0:00:00]} 4. dxe4 {[%emt 0:00:00]} Nf6 {[%emt 0:00:00]} 5. Ngf3 {[%emt 0:00:00]} Bg4 {[%emt 0:00:00]} 6. g3 {[%emt 0:00:00]} e6 {[%emt 0:00:00]} 7. Bg2 {[%emt 0:00:00]} Be7 {[%emt 0:00:00]} 8. O-O {[%emt 0:00:00]} O-O {[%emt 0:00:00]} 9. Re1 {[%emt 0:00:00]} Nbd7 {[%emt 0:00:00]} 10. Qe2 {[%emt 0:00:00]} a5 {[%emt 0:00:00]} 11. a4 {[%emt 0:00:00]} Ne5 {[%emt 0:00:00]} 12. Qe3 {[%emt 0:00:00]} Nxf3+ {[%emt 0:00:00]} 13. Nxf3 {[%emt 0:00:00]} Qc7 {[%emt 0:00:00]} 14. Bd2 {[%emt 0:00:00]} Rfd8 {[%emt 0:00:00]} 15. Bc3 {[%emt 0:00:00]} Bxf3 {[%emt 0:00:00]} 16. Bxf3 {[%emt 0:00:00]} b5 {[%emt 0:00:00]} 17. axb5 {[%emt 0:00:00]} cxb5 {[%emt 0:00:00]} 18. Bxf6 {[%emt 0:00:00]} Bxf6 {[%emt 0:00:00]} 19. e5 {[%emt 0:00:00]} Be7 {[%emt 0:00:00]} 20. Bxa8 {[%emt 0:00:00]} Rxa8 {[%emt 0:00:00]} 21. Qe4 {[%emt 0:00:00]} Rd8 {[%emt 0:00:00]} 22. Red1 {[%emt 0:00:00]} b4 {[%emt 0:00:00]} 23. Rxd8+ {[%emt 0:00:00]} Qxd8 {[%emt 0:00:00]} 24. Qe2 {[%emt 0:00:00]} Qb6 {[%emt 0:00:00]} 25. Qe4 {[%emt 0:00:00]} Qd8 {[%emt 0:00:00]} 26. Qc6 {[%emt 0:00:00]} h6 {[%emt 0:00:00]} 27. Qb5 {[%emt 0:00:00]} Qc7 {[%emt 0:00:00]} 28. Rxa5 {[%emt 0:12:30]} Bd8 {[%emt 0:00:00]} 29. Ra8 {[%emt 0:00:00]} b3 {[%emt 0:00:00]} 30. c3 {[%emt 0:00:00]} Kh7 {[%emt 0:00:00]} 31. Qd3+ {[%emt 0:00:00]} g6 {[%emt 0:00:00]} 32. Qxd8 {[%emt 0:00:00]} Qxd8 {[%emt 0:00:00]} 33. Rxd8 {[%emt 0:00:00]} Kg7 {[%emt 0:00:00]} 34. c4 {[%emt 0:00:00]} g5 {[%emt 0:00:00]} 35. c5 {[%emt 0:00:00]} Kg6 {[%emt 0:00:00]} 36. c6 {[%emt 0:00:00]} Kf5 {[%emt 0:00:00]} 37. c7 {[%emt 0:00:00]} Kxe5 {[%emt 0:00:00]} 38. c8=Q {[%emt 0:00:00]} f5 {[%emt 0:00:00]} 39. Qc5+ {[%emt 0:00:00]} Ke4 {[%emt 0:00:00]} 40. Qe3# {[%emt 0:00:00]} 1-0

[Event "Romanian-ch Youth Open U8 2024"]
[Site "Eforie Nord"]
[Date "2024.04.17"]
[Round "7.3"]
[White "Szabo, Viktor"]
[Black "Mihai, Adam-Alexandru"]
[Result "0-1"]
[ECO "B48"]
[WhiteElo "1670"]
[BlackElo "1533"]
[Annotator "NA RC COMBH"]
[PlyCount "78"]
[EventDate "2024.04.10"]
[EventType "swiss"]
[EventCountry "ROU"]
[SourceTitle "playchess.com"]
[Source "ChessBase"]
[SourceQuality "1"]
[TimeControl "5400+30"]

1. e4 {[%emt 0:00:35]} c5 {[%emt 0:00:57]} 2. Nc3 {[%emt 0:02:07]} e6 {[%emt 0:01:09]} 3. Nge2 {[%emt 0:06:02]} a6 {[%emt 0:00:17]} 4. d4 {[%emt 0:05:10]} cxd4 {[%emt 0:02:36]} 5. Nxd4 {[%emt 0:19:17]} Qc7 {[%emt 0:01:51]} 6. Bd3 {[%emt 0:01:25]} Nc6 {[%emt 0:02:41]} 7. Be3 {[%emt 0:01:50]} Bb4 {[%emt 0:02:00]} 8. Nde2 {[%emt 0:00:16]} b5 {[%emt 0:01:21]} 9. a3 {[%emt 0:00:34]} Be7 {[%emt 0:03:17]} 10. b4 {[%emt 0:02:01]} Bb7 {[%emt 0:02:24]} 11. f3 {[%emt 0:00:17]} Nf6 {[%emt 0:04:24]} 12. Rb1 {[%emt 0:01:44]} Rc8 {[%emt 1:13:33]} 13. Qd2 {[%emt 0:07:08]} Nh5 {[%emt 0:00:00]} 14. Rb3 {[%emt 0:05:04]} Nf6 {[%emt 0:00:00]} 15. Rb1 {[%emt 0:00:19]} Nh5 {[%emt 0:00:00]} 16. Nf4 {[%emt 0:00:27]} Nxf4 {[%emt 0:00:00]} 17. Bxf4 {[%emt 0:00:33]} Bd6 {[%emt 0:00:00]} 18. Bxd6 {[%emt 0:02:57]} Qxd6 {[%emt 0:00:00]} 19. Ne2 {[%emt 0:00:38]} Nd4 {[%emt 0:00:00]} 20. Nxd4 {[%emt 0:03:08]} Qxd4 {[%emt 0:00:00]} 21. Rb3 {[%emt 0:00:32]} Qa1+ {[%emt 0:00:00]} 22. Qd1 {[%emt 0:00:13]} Qxd1+ {[%emt 0:00:00]} 23. Kxd1 {[%emt 0:00:10]} d5 {[%emt 0:00:00]} 24. Re1 {[%emt 0:00:16]} O-O {[%emt 0:00:00]} 25. Kc1 {[%emt 0:00:33]} Rfd8 {[%emt 0:00:00]} 26. Kb2 {[%emt 0:00:18]} dxe4 {[%emt 0:00:00]} 27. fxe4 {[%emt 0:00:52]} Kf8 {[%emt 0:00:00]} 28. g4 {[%emt 0:00:25]} Ke7 {[%emt 0:00:00]} 29. e5 {[%emt 0:00:26]} Rc7 {[%emt 0:00:00]} 30. h4 {[%emt 0:00:16]} Rdc8 {[%emt 0:00:00]} 31. c3 {[%emt 0:00:16]} Bd5 {[%emt 0:00:00]} 32. Rc1 {[%emt 0:00:39]} Bc4 {[%emt 0:00:00]} 33. Kc2 {[%emt 0:00:15]} Bxb3+ {[%emt 0:00:00]} 34. Kxb3 {[%emt 0:00:08]} Rd8 {[%emt 0:00:00]} 35. Rd1 {[%emt 0:00:21]} Rcd7 {[%emt 0:00:00]} 36. Kc2 {[%emt 0:00:07]} g6 {[%emt 0:00:00]} 37. g5 {[%emt 0:00:10]} Rd5 {[%emt 0:00:00]} 38. Be2 {[%emt 0:00:36]} Rxd1 {[%emt 0:00:00]} 39. Bxd1 {[%emt 0:00:30]} Rd5 {[%emt 0:00:00]} 0-1

[Event "Romanian-ch Youth Open U8 2024"]
[Site "Eforie Nord"]
[Date "2024.04.18"]
[Round "8.1"]
[White "Badescu, Matei-Andrei"]
[Black "Vasiloi, Leonard"]
[Result "0-1"]
[ECO "B01"]
[WhiteElo "1635"]
[BlackElo "1547"]
[Annotator "NA RC COMBH"]
[PlyCount "90"]
[EventDate "2024.04.10"]
[EventType "swiss"]
[EventCountry "ROU"]
[SourceTitle "playchess.com"]
[Source "ChessBase"]
[SourceQuality "1"]
[TimeControl "5400+30"]

1. e4 {[%emt 0:00:04]} d5 {[%emt 0:00:03]} 2. exd5 {[%emt 0:00:06]} Qxd5 {[%emt 0:00:06]} 3. Nc3 {[%emt 0:00:05]} Qa5 {[%emt 0:00:08]} 4. d4 {[%emt 0:00:10]} c6 {[%emt 0:00:08]} 5. Bc4 {[%emt 0:00:22]} Nf6 {[%emt 0:00:05]} 6. Bd2 {[%emt 0:00:11]} Bf5 {[%emt 0:01:10]} 7. Nf3 {[%emt 0:00:13]} e6 {[%emt 0:00:26]} 8. Nd5 {[%emt 0:00:07]} Qd8 {[%emt 0:00:06]} 9. Nxf6+ {[%emt 0:00:07]} gxf6 {[%emt 0:00:14]} 10. O-O {[%emt 0:00:15]} Bd6 {[%emt 0:00:06]} 11. Re1 {[%emt 0:00:21]} Qc7 {[%emt 0:01:59]} 12. Bf1 {[%emt 0:00:26]} Nd7 {[%emt 0:00:10]} 13. g3 {[%emt 0:00:30]} O-O-O {[%emt 0:00:46]} 14. Bg2 {[%emt 0:00:11]} c5 {[%emt 0:10:12]} 15. Bc3 {[%emt 0:00:51]} cxd4 {[%emt 0:01:28]} 16. Nxd4 {[%emt 0:01:27]} Ne5 {[%emt 0:01:13]} 17. Nxf5 {[%emt 0:00:26]} exf5 {[%emt 0:00:07]} 18. Qh5 {[%emt 0:03:26]} Qd7 {[%emt 0:01:28]} 19. Rad1 {[%emt 0:00:58]} Rhg8 {[%emt 0:07:12]} 20. Bxe5 {[%emt 0:00:53]} fxe5 {[%emt 0:00:13]} 21. Bh3 {[%emt 0:00:11]} Qe7 {[%emt 0:01:35]} 22. Qxf5+ {[%emt 0:00:19]} Kb8 {[%emt 0:00:07]} 23. Bg2 {[%emt 0:02:19]} Rg5 {[%emt 0:00:22]} 24. Qd3 {[%emt 0:01:10]} f5 {[%emt 0:07:59]} 25. h4 {[%emt 0:01:54]} e4 {[%emt 0:02:59]} 26. Qb5 {[%emt 0:02:16]} a6 {[%emt 0:02:10]} 27. Qa5 {[%emt 0:01:47]} Bc7 {[%emt 0:00:45]} 28. Rxd8+ {[%emt 0:00:10]} Qxd8 {[%emt 0:01:31]} 29. Qc5 {[%emt 0:02:08]} Rxg3 {[%emt 0:00:32]} 30. Qxf5 {[%emt 0:00:38]} Rg7 {[%emt 0:10:53]} 31. Qxe4 {[%emt 0:00:19]} Bd6 {[%emt 0:06:09]} 32. Qd5 {[%emt 0:03:05]} Rd7 {[%emt 0:02:50]} 33. Qh5 {[%emt 0:00:38]} Be7 {[%emt 0:06:40]} 34. Qxh7 {[%emt 0:05:04]} Bb4 {[%emt 0:00:23]} 35. Qf5 {[%emt 0:01:42]} Bxe1 {[%emt 0:00:16]} 36. Qe5+ {[%emt 0:00:05]} Ka8 {[%emt 0:00:09]} 37. Qe2 {[%emt 0:00:36]} Rd6 {[%emt 0:00:23]} 38. Qf3 {[%emt 0:01:10]} Qd7 {[%emt 0:01:05]} 39. c4 {[%emt 0:01:29]} Rd1 {[%emt 0:02:48]} 40. Qf8+ {[%emt 0:01:34]} Ka7 {[%emt 0:00:13]} 41. Qc5+ {[%emt 0:00:12]} b6 {[%emt 0:00:08]} 42. Qh5 {[%emt 0:00:32]} Bb4+ {[%emt 0:00:23]} 43. Bf1 {[%emt 0:00:20]} Qg7+ {[%emt 0:00:10]} 44. Kh2 {[%emt 0:00:18]} Bd6+ {[%emt 0:00:30]} 45. Kh1 {[%emt 0:00:21]} Rxf1# {[%emt 0:00:06]} 0-1

[Event "Romanian-ch Youth Open U8 2024"]
[Site "Eforie Nord"]
[Date "2024.04.18"]
[Round "8.3"]
[White "Dragoi, Aaron-Mathias"]
[Black "Liga, Matei"]
[Result "0-1"]
[ECO "D04"]
[WhiteElo "1533"]
[BlackElo "1504"]
[Annotator "NA RC COMBH"]
[PlyCount "98"]
[EventDate "2024.04.10"]
[EventType "swiss"]
[EventCountry "ROU"]
[SourceTitle "playchess.com"]
[Source "ChessBase"]
[SourceQuality "1"]
[TimeControl "5400+30"]

1. d4 {[%emt 0:10:03]} d5 {[%emt 0:10:05]} 2. Nf3 {[%emt 0:00:02]} Nf6 {[%emt 0:00:06]} 3. e3 {[%emt 0:00:02]} Bf5 {[%emt 0:00:08]} 4. Bd3 {[%emt 0:00:01]} Bg6 {[%emt 0:00:06]} 5. Ne5 {[%emt 0:00:40]} Nbd7 {[%emt 0:00:47]} 6. Nxg6 {[%emt 0:04:04]} hxg6 {[%emt 0:00:05]} 7. c3 {[%emt 0:00:37]} e6 {[%emt 0:01:28]} 8. Qc2 {[%emt 0:02:37]} c5 {[%emt 0:04:46]} 9. b3 {[%emt 0:04:22]} Qc7 {[%emt 0:05:17]} 10. c4 {[%emt 0:05:42]} O-O-O {[%emt 0:03:11]} 11. h3 {[%emt 0:02:26]} Bd6 {[%emt 0:01:54]} 12. Nc3 {[%emt 0:05:44]} a6 {[%emt 0:02:28]} 13. Bd2 {[%emt 0:04:18]} Kb8 {[%emt 0:08:10]} 14. Na4 {[%emt 0:08:07]} Rc8 {[%emt 0:02:22]} 15. dxc5 {[%emt 0:03:34]} Nxc5 {[%emt 0:01:16]} 16. Nxc5 {[%emt 0:00:18]} Bxc5 {[%emt 0:00:15]} 17. b4 {[%emt 0:01:03]} Ba7 {[%emt 0:06:08]} 18. c5 {[%emt 0:00:19]} e5 {[%emt 0:02:55]} 19. f3 {[%emt 0:06:00]} e4 {[%emt 0:00:23]} 20. Be2 {[%emt 0:04:21]} Qg3+ {[%emt 0:00:45]} 21. Kf1 {[%emt 0:03:55]} exf3 {[%emt 0:03:50]} 22. Bxf3 {[%emt 0:01:11]} Ka8 {[%emt 0:02:16]} 23. Be1 {[%emt 0:03:59]} Qe5 {[%emt 0:01:10]} 24. Qc3 {[%emt 0:00:01]} Qe7 {[%emt 0:00:20]} 25. Qd4 {[%emt 0:01:49]} Rhe8 {[%emt 0:00:57]} 26. Bf2 {[%emt 0:01:56]} Bb8 {[%emt 0:03:20]} 27. Re1 {[%emt 0:01:30]} Be5 {[%emt 0:00:13]} 28. Qd3 {[%emt 0:01:10]} Red8 {[%emt 0:01:48]} 29. g3 {[%emt 0:05:27]} Ne4 {[%emt 0:01:20]} 30. Bxe4 {[%emt 0:02:26]} dxe4 {[%emt 0:00:06]} 31. Qxe4 {[%emt 0:04:08]} Rd2 {[%emt 0:00:27]} 32. Re2 {[%emt 0:08:16]} Rcd8 {[%emt 0:00:20]} 33. Qf3 {[%emt 0:03:25]} Qe6 {[%emt 0:01:08]} 34. Kg2 {[%emt 0:01:53]} R2d5 {[%emt 0:01:43]} 35. Rb1 {[%emt 0:00:53]} Bc7 {[%emt 0:00:37]} 36. Qg4 {[%emt 0:00:34]} f5 {[%emt 0:00:07]} 37. Qf3 {[%emt 0:00:11]} g5 {[%emt 0:00:38]} 38. g4 {[%emt 0:00:23]} Qg6 {[%emt 0:00:39]} 39. gxf5 {[%emt 0:01:17]} Rxf5 {[%emt 0:00:01]} 40. Qg4 {[%emt 0:00:27]} Rxf2+ {[%emt 0:00:10]} 41. Rxf2 {[%emt 0:00:03]} Qxb1 {[%emt 0:00:07]} 42. Qxg5 {[%emt 0:00:02]} Qxb4 {[%emt 0:00:07]} 43. Qe7 {[%emt 0:00:04]} Rc8 {[%emt 0:00:38]} 44. Qd7 {[%emt 0:00:09]} Kb8 {[%emt 0:00:05]} 45. c6 {[%emt 0:00:01]} Qe4+ {[%emt 0:00:14]} 46. Kf1 {[%emt 0:00:03]} Qc4+ {[%emt 0:00:28]} 47. Kg2 {[%emt 0:00:07]} Rd8 {[%emt 0:00:23]} 48. Qxg7 {[%emt 0:00:23]} Qxc6+ {[%emt 0:00:05]} 49. Kf1 {[%emt 0:00:06]} Qh1+ {[%emt 0:00:14]} 0-1

[Event "Romanian-ch Youth Open U8 2024"]
[Site "Eforie Nord"]
[Date "2024.04.18"]
[Round "8.4"]
[White "Rotescu, Vladimir-Szilard"]
[Black "Rosu, Razvan-Mihai"]
[Result "0-1"]
[ECO "D00"]
[WhiteElo "1414"]
[BlackElo "1517"]
[Annotator "NA RC COMBH"]
[PlyCount "130"]
[EventDate "2024.04.10"]
[EventType "swiss"]
[EventCountry "ROU"]
[SourceTitle "playchess.com"]
[Source "ChessBase"]
[SourceQuality "1"]
[TimeControl "5400+30"]

1. d4 {[%emt 0:01:08]} d5 {[%emt 0:10:04]} 2. Bg5 {[%emt 0:00:06]} h6 {[%emt 0:00:07]} 3. Bh4 {[%emt 0:00:05]} c6 {[%emt 0:00:08]} 4. Nf3 {[%emt 0:00:37]} Qb6 {[%emt 0:00:10]} 5. b3 {[%emt 0:00:09]} Bf5 {[%emt 0:00:35]} 6. e3 {[%emt 0:00:28]} e6 {[%emt 0:00:19]} 7. Bd3 {[%emt 0:00:37]} Bxd3 {[%emt 0:00:09]} 8. Qxd3 {[%emt 0:00:08]} Nd7 {[%emt 0:00:39]} 9. O-O {[%emt 0:00:19]} Be7 {[%emt 0:00:12]} 10. Bg3 {[%emt 0:00:55]} Ngf6 {[%emt 0:00:14]} 11. c4 {[%emt 0:00:32]} O-O {[%emt 0:00:13]} 12. c5 {[%emt 0:00:21]} Qd8 {[%emt 0:00:27]} 13. Nc3 {[%emt 0:00:26]} b6 {[%emt 0:01:19]} 14. b4 {[%emt 0:01:31]} a5 {[%emt 0:01:05]} 15. a3 {[%emt 0:00:14]} axb4 {[%emt 0:03:14]} 16. axb4 {[%emt 0:00:41]} b5 {[%emt 0:01:33]} 17. h3 {[%emt 0:04:46]} Qc8 {[%emt 0:06:26]} 18. Nd2 {[%emt 0:03:09]} Qb7 {[%emt 0:06:22]} 19. Nb3 {[%emt 0:01:38]} Rxa1 {[%emt 0:00:46]} 20. Rxa1 {[%emt 0:00:08]} Bd8 {[%emt 0:04:05]} 21. Bd6 {[%emt 0:03:55]} Re8 {[%emt 0:00:36]} 22. Na5 {[%emt 0:00:02]} Bxa5 {[%emt 0:00:23]} 23. Rxa5 {[%emt 0:00:29]} Ra8 {[%emt 0:02:00]} 24. Bc7 {[%emt 0:04:44]} Rxa5 {[%emt 0:01:17]} 25. Bxa5 {[%emt 0:00:33]} e5 {[%emt 0:01:21]} 26. Qf5 {[%emt 0:02:34]} exd4 {[%emt 0:01:23]} 27. exd4 {[%emt 0:01:27]} Qc8 {[%emt 0:02:50]} 28. Qf4 {[%emt 0:03:01]} Qe8 {[%emt 0:01:57]} 29. Kf1 {[%emt 0:02:58]} Nf8 {[%emt 0:06:05]} 30. f3 {[%emt 0:06:00]} Ne6 {[%emt 0:02:52]} 31. Qe3 {[%emt 0:02:09]} g5 {[%emt 0:03:52]} 32. Ne2 {[%emt 0:01:01]} Ng7 {[%emt 0:03:17]} 33. Qxe8+ {[%emt 0:01:37]} Nfxe8 {[%emt 0:00:34]} 34. g4 {[%emt 0:01:54]} f5 {[%emt 0:00:36]} 35. Ng3 {[%emt 0:00:16]} f4 {[%emt 0:00:20]} 36. Ne2 {[%emt 0:00:13]} Kf7 {[%emt 0:00:36]} 37. Bd8 {[%emt 0:01:19]} Ne6 {[%emt 0:00:30]} 38. Bb6 {[%emt 0:00:34]} Nf6 {[%emt 0:01:55]} 39. Ke1 {[%emt 0:01:54]} Nf8 {[%emt 0:00:26]} 40. Nc1 {[%emt 0:02:14]} Ke7 {[%emt 0:02:11]} 41. Nd3 {[%emt 0:00:46]} Ne6 {[%emt 0:02:15]} 42. Kf2 {[%emt 0:01:25]} Nxd4 {[%emt 0:00:27]} 43. h4 {[%emt 0:00:13]} Nd7 {[%emt 0:01:24]} 44. Bc7 {[%emt 0:00:56]} Ke6 {[%emt 0:00:49]} 45. hxg5 {[%emt 0:01:20]} hxg5 {[%emt 0:00:16]} 46. Bd8 {[%emt 0:00:05]} Nf6 {[%emt 0:00:45]} 47. Bc7 {[%emt 0:52:23]} Nc2 {[%emt 0:03:01]} 48. Bd6 {[%emt 0:00:00]} d4 {[%emt 0:04:05]} 49. Ke2 {[%emt 0:00:00]} Nd5 {[%emt 0:01:13]} 50. Nf2 {[%emt 0:00:00]} Ncxb4 {[%emt 0:04:46]} 51. Ne4 {[%emt 0:00:00]} Nc3+ {[%emt 0:00:15]} 52. Nxc3 dxc3 {[%emt 0:00:03]} 53. Kd1 Nd3 {[%emt 0:24:33]} 54. Kc2 {[%emt 0:00:00]} Ne1+ {[%emt 0:00:00]} 55. Kxc3 {[%emt 0:00:00]} Nxf3 {[%emt 0:00:00]} 56. Kb2 {[%emt 0:00:00]} Ne5 {[%emt 0:00:00]} 57. Bxe5 {[%emt 0:00:00]} Kxe5 {[%emt 0:00:00]} 58. Kc2 {[%emt 0:00:00]} Kd4 {[%emt 0:00:00]} 59. Kd2 {[%emt 0:00:00]} b4 {[%emt 0:00:00]} 60. Kc2 {[%emt 0:00:00]} f3 {[%emt 0:00:00]} 61. Kb2 {[%emt 0:00:00]} f2 {[%emt 0:00:00]} 62. Kc2 {[%emt 0:00:00]} f1=Q {[%emt 0:00:00]} 63. Kb2 {[%emt 0:08:00]} Qe2+ {[%emt 0:05:00]} 64. Kb3 {[%emt 0:00:00]} Kxc5 {[%emt 0:00:00]} 65. Ka4 {[%emt 0:00:00]} Qa2# {[%emt 0:00:00]} 0-1